bitfinex/quotes_SOLUSD_20220130
["timestamp","ask_amount","ask_price","bid_price","bid_amount"]
[1643548380502,121.43172771,94.845,94.768,0.08885516]
[1643548380704,104.1,94.843,94.768,0.08885516]
[1643548380903,0.25,94.842,94.768,0.08885516]
[1643548381103,104.1,94.839,94.768,0.08885516]
[1643548381303,0.25,94.838,94.768,0.08885516]
[1643548381804,104.1,94.836,94.768,0.08885516]
[1643548382004,18.99334683,94.837,94.768,0.08885516]
[1643548382205,15.834,94.85,94.768,0.08885516]
[1643548382504,24.0247,94.861,94.768,0.08885516]
[1643548382704,24.0247,94.879,94.768,0.08885516]
[1643548382908,24.0247,94.879,94.768,12.90885516]
[1643548383104,16.72065794,94.918,94.778,6.0]
[1643548383305,16.72065794,94.918,94.779,0.25]
[1643548383506,16.72065794,94.918,94.779,6.25]
[1643548383906,24.7766,94.898,94.779,6.25]
[1643548384107,15.828,94.89,94.78,110.1]
[1643548384305,15.828,94.89,94.781,0.45]
[1643548384505,15.828,94.89,94.779,6.25]
[1643548385106,15.828,94.89,94.782,6.0]
[1643548385306,15.828,94.89,94.79,33.73138382]
[1643548385511,104.1,94.879,94.791,47.161]
[1643548385706,104.1,94.879,94.792,0.1]
[1643548385906,0.25,94.878,94.792,0.1]
[1643548386310,0.099,94.878,94.792,0.1]
[1643548386507,104.1,94.879,94.792,0.1]
[1643548386708,2.95669142,94.877,94.792,0.1]
[1643548388709,15.831,94.87,94.792,0.1]
[1643548388910,104.1,94.869,94.792,0.1]
[1643548389610,22.9659,94.896,94.801,6.0]
[1643548389809,22.9659,94.896,94.802,0.25]
[1643548390009,2.95669142,94.895,94.802,0.25]
[1643548390210,19.67734936,94.895,94.792,0.1]
[1643548390409,15.828,94.89,94.792,0.1]
[1643548390812,104.1,94.889,94.792,0.1]
[1643548391012,107.05669142,94.889,94.792,0.1]
[1643548391210,2.95669142,94.888,94.792,0.1]
[1643548391811,2.95669142,94.888,94.792,0.35]
[1643548392012,15.831,94.87,94.792,0.35]
[1643548392312,104.1,94.869,94.792,0.35]
[1643548392513,107.05669142,94.869,94.792,0.35]
[1643548392713,2.95669142,94.868,94.792,0.35]
[1643548392912,3.20669142,94.868,94.792,0.35]
[1643548393513,2.95669142,94.867,94.792,0.35]
[1643548394114,104.1,94.859,94.792,0.35]
[1643548394514,104.1,94.859,94.792,0.1]
[1643548395314,107.05669142,94.859,94.792,0.1]
[1643548395918,104.1,94.859,94.792,0.1]
[1643548396913,15.834,94.85,94.792,0.1]
[1643548397114,104.1,94.849,94.792,0.1]
[1643548397315,107.30669142,94.849,94.762,1.46363936]
[1643548397715,107.30669142,94.849,94.76,1.46363936]
[1643548397915,104.1,94.847,94.761,46.08024156]
[1643548398115,104.1,94.847,94.762,0.3]
[1643548398316,2.95669142,94.846,94.762,0.55]
[1643548398618,2.95669142,94.846,94.761,0.25]
[1643548398816,2.95669142,94.846,94.76,0.25]
[1643548399017,15.835,94.84,94.76,0.25]
[1643548399218,15.835,94.84,94.768,0.00614722]
[1643548399516,2.95669142,94.839,94.768,0.00614722]
[1643548400525,107.05669142,94.839,94.768,0.00614722]
[1643548400920,2.95669142,94.838,94.768,0.00614722]
[1643548403947,2.95669142,94.838,94.768,0.17771032]
[1643548405148,0.25,94.837,94.768,0.17771032]
[1643548405348,104.1,94.829,94.768,0.17771032]
[1643548405951,2.95669142,94.828,94.768,0.17771032]
[1643548407348,0.25,94.827,94.768,0.17771032]
[1643548407752,2.95669142,94.826,94.768,0.17771032]
[1643548409551,104.1,94.824,94.768,0.17771032]
[1643548409954,2.95669142,94.823,94.768,0.17771032]
[1643548411154,42.0,94.822,94.768,0.35542064]
[1643548411355,104.1,94.821,94.768,0.35542064]
[1643548411657,107.05669142,94.821,94.768,0.35542064]
[1643548411854,2.95669142,94.82,94.768,0.35542064]
[1643548412460,15.68986105,94.819,94.768,0.35542064]
[1643548412659,104.1,94.818,94.768,0.35542064]
[1643548413060,24.9074,94.817,94.768,0.35542064]
[1643548413360,104.35,94.816,94.768,0.35542064]
[1643548414760,104.1,94.816,94.768,0.35542064]
[1643548415560,24.9074,94.817,94.768,0.35542064]
[1643548418362,0.25,94.816,94.768,0.35542064]
[1643548418768,104.35,94.816,94.768,0.35542064]
[1643548418968,2.95669142,94.815,94.768,0.35542064]
[1643548421381,18.64655247,94.815,94.768,0.35542064]
[1643548421782,107.05669142,94.814,94.768,0.35542064]
[1643548421988,107.30669142,94.814,94.768,0.35542064]
[1643548422182,2.95669142,94.813,94.768,0.35542064]
[1643548422384,2.95669142,94.813,94.729,0.259214]
[1643548422607,2.95669142,94.813,94.726,22.8346]
[1643548422608,15.845,94.78,94.728,0.4868296]
[1643548422809,104.1,94.779,94.728,0.4868296]
[1643548423012,131.21929142,94.779,94.728,0.4868296]
[1643548423206,154.88824846,94.779,94.728,2.96e-05]
[1643548423409,21.3548858,94.778,94.728,2.96e-05]
[1643548423611,15.851,94.77,94.728,2.96e-05]
[1643548424008,18.39819438,94.769,94.728,2.96e-05]
[1643548424209,24.0039,94.768,94.728,2.96e-05]
[1643548424614,18.39819438,94.767,94.728,2.96e-05]
[1643548424910,15.849,94.76,94.728,2.96e-05]
[1643548425311,18.39819438,94.759,94.728,2.96e-05]
[1643548425512,24.1776,94.759,94.728,2.96e-05]
[1643548426314,24.8428,94.778,94.728,2.96e-05]
[1643548426515,15.6295,94.79,94.728,2.96e-05]
[1643548427017,2.95669142,94.817,94.728,2.96e-05]
[1643548427413,15.842,94.8,94.728,2.96e-05]
[1643548427615,47.6265,94.837,94.728,2.96e-05]
[1643548427616,47.6265,94.837,94.73,44.52522158]
[1643548427814,10.0,94.84,94.731,47.8194]
[1643548428014,15.7337,94.871,94.741,6.0]
[1643548428213,15.7337,94.871,94.742,104.1]
[1643548428414,104.1,94.867,94.742,104.35]
[1643548428614,104.1,94.867,94.753,34.83476436]
[1643548428813,104.1,94.867,94.754,22.9086]
[1643548429213,104.1,94.867,94.755,0.25]
[1643548429717,15.832,94.86,94.755,0.25]
[1643548430116,18.59671913,94.859,94.755,0.25]
[1643548430319,104.1,94.858,94.754,22.9086]
[1643548430516,122.69671913,94.858,94.754,22.9086]
[1643548430718,15.836,94.85,94.754,22.9086]
[1643548430917,104.1,94.849,94.754,22.9086]
[1643548431120,107.05669142,94.849,94.754,22.9086]
[1643548431316,2.95669142,94.848,94.754,22.9086]
[1643548431919,15.837,94.84,94.754,22.9086]
[1643548432718,15.837,94.84,94.755,0.25]
[1643548432919,15.837,94.84,94.754,22.9086]
[1643548433120,2.95669142,94.839,94.755,0.25]
[1643548433320,15.837,94.84,94.755,0.25]
[1643548433750,15.837,94.84,94.754,22.9086]
[1643548434622,0.25,94.839,94.754,22.9086]
[1643548435024,104.35,94.839,94.754,22.9086]
[1643548435224,0.25,94.839,94.754,22.9086]
[1643548435422,0.25,94.839,94.755,0.25]
[1643548436227,15.837,94.84,94.755,0.25]
[1643548437528,0.25,94.839,94.755,0.25]
[1643548437929,104.35,94.839,94.755,0.25]
[1643548438129,0.25,94.839,94.755,0.25]
[1643548439630,80.32834544,94.89,94.755,0.25]
[1643548440233,15.831,94.86,94.754,22.9086]
[1643548440832,13.20969734,94.859,94.755,0.25]
[1643548441034,13.20969734,94.859,94.755,104.35]
[1643548441249,2.95669142,94.858,94.755,104.35]
[1643548441452,25.89303363,94.859,94.755,104.35]
[1643548441653,15.64002771,94.859,94.755,104.35]
[1643548442052,15.828,94.88,94.755,104.35]
[1643548442250,15.64002771,94.879,94.755,104.35]
[1643548442456,15.64002771,94.879,94.756,2.187382]
[1643548442650,15.64002771,94.879,94.767,104.1]
[1643548442851,15.64002771,94.879,94.769,37.96717271]
[1643548443251,15.64002771,94.879,94.77,0.25]
[1643548443452,2.95669142,94.878,94.77,0.25]
[1643548443851,15.64002771,94.879,94.77,0.25]
[1643548444451,15.64002771,94.879,94.77,104.35]
[1643548444652,15.64002771,94.879,94.78,6.0]
[1643548444852,15.64002771,94.879,94.781,104.35]
[1643548445457,10.25300592,94.883,94.782,23.3487]
[1643548445654,0.25,94.878,94.782,23.3487]
[1643548445955,0.25,94.882,94.785,104.1]
[1643548446354,0.25,94.882,94.786,0.25]
[1643548447155,10.25300592,94.883,94.786,0.25]
[1643548447356,4.32238866,94.951,94.786,0.25]
[1643548447357,15.64002771,94.919,94.795,6.0]
[1643548447559,15.64002771,94.919,94.797,6.0]
[1643548447755,2.95669142,94.954,94.797,6.0]
[1643548447955,2.95669142,94.954,94.807,104.1]
[1643548448155,189.76832497,94.967,94.817,6.0]
[1643548448354,189.76832497,94.967,94.818,104.35]
[1643548448557,11.1449329,94.976,94.818,110.35]
[1643548448757,2.84208823,94.975,94.818,129.42359614]
[1643548448960,15.815,94.96,94.819,2.187382]
[1643548449158,11.1449329,94.976,94.829,6.0]
[1643548449361,11.1449329,94.976,94.83,35.30511712]
[1643548449559,11.1449329,94.976,94.83,43.49249912]
[1643548449560,26.78496061,94.976,94.83,43.49249912]
[1643548449760,26.78496061,94.976,94.83,41.30511712]
[1643548449960,26.78496061,94.976,94.831,2.187382]
[1643548450163,26.78496061,94.976,94.841,6.0]
[1643548450361,26.78496061,94.976,94.85,15.811]
[1643548450564,23.82826919,94.976,94.86,6.0]
[1643548450762,15.64002771,94.976,94.861,23.92]
[1643548450963,15.64002771,94.999,94.861,30.17]
[1643548451163,15.64002771,94.999,94.862,104.1]
[1643548451368,15.64002771,94.999,94.863,0.25]
[1643548451567,15.61339533,95.019,94.872,6.0]
[1643548451765,15.61339533,95.019,94.873,43.6744068]
[1643548452064,15.26680597,95.033,94.873,43.6744068]
[1643548452065,15.26680597,95.033,94.883,6.0]
[1643548452263,15.26680597,95.033,94.884,175.8386]
[1643548452463,5.33315632,95.032,94.884,178.025982]
[1643548452674,3.33315632,95.032,94.901,41.85549308]
[1643548452865,15.61339533,95.041,94.901,41.85549308]
[1643548452866,3.33315632,95.04,94.902,23.0696]
[1643548453073,3.33315632,95.04,94.912,110.1]
[1643548453270,15.61339533,95.062,94.913,0.25]
[1643548453666,2.95669142,95.072,94.941,35.78069692]
[1643548453871,2.95669142,95.072,94.942,0.25]
[1643548454065,2.95669142,95.072,94.951,6.0]
[1643548454266,18.57008675,95.102,94.952,104.35]
[1643548454469,2.95669142,95.116,94.952,104.35]
[1643548454672,2.95669142,95.116,94.97,15.79]
[1643548454867,0.5508716,95.12,94.972,147.28721518]
[1643548455066,0.5508716,95.12,94.982,6.0]
[1643548455270,0.5508716,95.12,94.983,22.7953]
[1643548455468,0.5508716,95.12,94.984,104.1]
[1643548455668,0.5508716,95.12,94.994,33.3420235]
[1643548455872,0.5508716,95.12,94.995,104.35]
[1643548456069,0.5508716,95.12,95.011,38.59563376]
[1643548456281,0.5508716,95.12,95.012,0.25]
[1643548456470,0.5508716,95.12,95.021,6.0]
[1643548456670,0.5508716,95.12,95.022,104.1]
[1643548456971,0.5508716,95.12,95.023,48.163]
[1643548457269,0.5508716,95.12,95.033,39.17637681]
[1643548457470,0.5508716,95.12,95.034,24.1489]
[1643548457670,0.5508716,95.12,95.034,24.3989]
[1643548457874,0.5508716,95.12,95.044,6.0]
[1643548458372,0.5508716,95.12,95.045,0.25]
[1643548459372,0.5508716,95.12,95.046,2.20258192]
[1643548459571,0.5508716,95.12,95.056,6.0]
[1643548459771,0.5508716,95.12,95.057,43.98640753]
[1643548460771,0.5508716,95.12,94.987,23.5551]
[1643548460972,0.5508716,95.12,95.023,23.2864]
[1643548461173,2.95669142,95.107,95.023,23.2864]
[1643548461373,2.95669142,95.107,94.987,23.5551]
[1643548461575,2.95669142,95.107,94.943,72.2732]
[1643548461874,15.794,95.1,94.974,39.91187062]
[1643548462277,16.96501267,95.099,94.975,0.25]
[1643548462573,19.92170409,95.099,94.975,0.25]
[1643548462774,16.96501267,95.099,94.976,2.20258192]
[1643548463076,16.96501267,95.099,94.986,6.0]
[1643548463272,16.96501267,95.099,94.987,0.25]
[1643548463476,0.5508716,95.12,94.987,0.25]
[1643548464075,0.5508716,95.12,94.987,6.25]
[1643548464675,0.5508716,95.12,94.987,0.25]
[1643548464876,0.5508716,95.12,94.978,0.25]
[1643548465077,0.5508716,95.12,94.987,6.0]
[1643548465276,0.5508716,95.12,94.988,0.25]
[1643548465679,0.5508716,95.12,94.99,38.52049393]
[1643548465876,0.5508716,95.12,94.991,0.25]
[1643548466476,15.792,95.11,94.991,0.25]
[1643548466677,15.792,95.11,94.99,38.52049393]
[1643548466678,16.93756823,95.107,94.99,38.52049393]
[1643548466878,104.1,95.106,94.991,0.25]
[1643548467079,7.69839132,95.106,94.991,0.25]
[1643548467278,16.93756823,95.105,94.991,0.25]
[1643548467505,19.89425965,95.105,94.99,38.52049393]
[1643548467703,15.794,95.1,94.99,38.52049393]
[1643548468103,2.95669142,95.099,94.99,38.52049393]
[1643548468312,19.89425965,95.099,94.99,38.52049393]
[1643548468605,16.93756823,95.098,94.99,38.52049393]
[1643548468805,19.89425965,95.098,94.991,0.25]
[1643548469005,15.797,95.08,94.991,0.25]
[1643548469406,18.75369142,95.08,94.991,0.25]
[1643548469606,0.25,95.079,94.991,0.25]
[1643548470810,2.95669142,95.079,94.991,0.25]
[1643548473009,2.95669142,95.096,95.0,6.0]
[1643548473312,16.3408716,95.12,95.001,0.25]
[1643548473510,16.3408716,95.12,95.002,6.0]
[1643548473709,16.3408716,95.12,95.001,2.45258192]
[1643548473911,16.3408716,95.12,95.011,6.0]
[1643548474109,16.3408716,95.12,95.012,145.75863401]
[1643548474409,16.3408716,95.12,95.012,146.00863401]
[1643548475412,16.3408716,95.12,95.012,41.90863401]
[1643548475614,0.25,95.119,95.012,41.90863401]
[1643548476122,0.5508716,95.12,95.013,104.1]
[1643548476314,0.5508716,95.12,95.022,6.0]
[1643548476515,0.5508716,95.12,95.023,6.0]
[1643548476714,0.5508716,95.12,95.024,104.1]
[1643548476913,0.5508716,95.12,95.025,23.9339]
[1643548477213,0.5508716,95.12,95.036,44.19285271]
[1643548477412,0.5508716,95.12,95.037,0.25]
[1643548477624,0.2524864,95.108,95.046,6.0]
[1643548477813,0.2524864,95.108,95.047,24.4274]
[1643548478014,0.2524864,95.108,95.047,26.62998192]
[1643548478216,0.2524864,95.108,95.058,45.85227153]
[1643548478418,0.0024864,95.108,95.059,0.25]
[1643548478615,0.0024864,95.108,95.069,104.1]
[1643548478817,0.0024864,95.108,95.07,23.8093]
[1643548479017,0.0024864,95.108,95.08,6.0]
[1643548479216,0.0024864,95.108,95.081,44.67868246]
[1643548479416,0.0024864,95.108,95.083,104.1]
[1643548479615,0.0024864,95.108,95.093,6.0]
[1643548479817,0.0024864,95.108,95.095,104.1]
[1643548480016,0.0024864,95.108,95.1,3.03219997]
[1643548480216,0.0024864,95.108,95.1,3.10074645]
[1643548480417,0.0024864,95.108,95.101,0.25]
[1643548485623,0.0024864,95.108,95.102,2.19776371]
[1643548485823,0.0024864,95.108,95.103,0.25]
[1643548486022,0.0024864,95.108,95.101,0.25]
[1643548486822,0.0024864,95.108,95.102,2.19776371]
[1643548487024,0.0024864,95.108,95.094,48.5159]
[1643548487223,0.0024864,95.108,95.066,2.19776371]
[1643548487424,0.0024864,95.108,95.023,112.0973]
[1643548487623,0.0024864,95.108,95.039,104.1]
[1643548488424,0.0024864,95.108,95.04,0.25]
[1643548488624,0.0024864,95.108,95.039,104.1]
[1643548489629,0.0024864,95.108,95.04,43.35490005]
[1643548489933,0.0024864,95.108,95.041,104.1]
[1643548490327,0.0024864,95.108,95.042,0.25]
[1643548490526,0.0024864,95.108,95.041,104.1]
[1643548490726,0.5049728,95.108,95.041,104.1]
[1643548490928,0.5049728,95.108,95.024,69.8268]
[1643548491527,0.5049728,95.108,95.024,22.8707]
[1643548491726,1.67346242,95.14,94.992,16.50249747]
[1643548491926,1.67346242,95.14,95.009,46.64777803]
[1643548492129,1.283229,95.122,95.009,46.64777803]
[1643548492327,1.283229,95.122,95.01,104.1]
[1643548492727,1.283229,95.137,95.011,0.25]
[1643548492928,1.283229,95.137,95.009,46.64777803]
[1643548492929,0.3239315,95.101,95.009,46.64777803]
[1643548494358,15.793,95.1,95.009,46.64777803]
[1643548495955,15.793,95.1,95.01,0.25]
[1643548496155,104.1,95.113,95.01,0.25]
[1643548496560,2.95669142,95.112,95.01,0.25]
[1643548498355,15.792,95.11,95.01,0.25]
[1643548498757,2.95669142,95.109,95.01,0.25]
[1643548499556,2.95669142,95.109,95.01,104.35]
[1643548499758,17.12238489,95.112,95.01,104.35]
[1643548500857,0.25,95.111,95.01,104.35]
[1643548501657,17.12238489,95.112,95.01,104.35]
[1643548502260,17.12238489,95.133,95.02,6.0]
[1643548502459,2.95669142,95.136,95.02,6.0]
[1643548502660,2.95669142,95.136,95.021,6.25]
[1643548503260,17.12238489,95.152,95.021,6.25]
[1643548503560,17.12238489,95.152,95.022,104.1]
[1643548503963,17.12238489,95.152,95.033,138.91462118]
[1643548504364,17.12238489,95.152,95.043,6.0]
[1643548504565,17.12238489,95.152,95.044,104.1]
[1643548504762,17.11877378,95.172,95.044,104.35]
[1643548504964,17.11877378,95.172,95.055,104.1]
[1643548504965,24.7356,95.168,95.055,104.1]
[1643548505164,24.7356,95.168,95.056,33.12845368]
[1643548505369,24.7356,95.168,95.056,33.37845368]
[1643548505565,24.7356,95.168,95.057,104.1]
[1643548505766,24.7356,95.168,95.058,0.25]
[1643548506165,0.25,95.167,95.058,0.25]
[1643548506567,0.25,95.167,95.067,6.0]
[1643548506765,0.25,95.167,95.068,104.35]
[1643548507165,0.25,95.167,95.068,104.1]
[1643548507366,0.25,95.167,95.069,0.25]
[1643548507966,0.25,95.167,95.079,42.78284947]
[1643548508372,17.11877378,95.172,95.08,0.25]
[1643548508567,0.25,95.171,95.08,0.25]
[1643548508966,0.25,95.171,95.08,104.35]
[1643548509367,17.11877378,95.172,95.08,104.35]
[1643548509968,17.11877378,95.172,95.08,0.25]
[1643548510167,2.95669142,95.171,95.08,0.25]
[1643548510372,17.11877378,95.172,95.08,0.25]
[1643548510768,3.20669142,95.171,95.08,0.25]
[1643548511069,15.781,95.17,95.08,0.25]
[1643548511471,2.95669142,95.169,95.08,0.25]
[1643548511869,17.11877378,95.172,95.08,0.25]
[1643548512070,17.11877378,95.191,95.09,104.1]
[1643548512276,17.11877378,95.191,95.091,0.25]
[1643548512571,2.95669142,95.19,95.091,0.25]
[1643548512770,2.84692626,95.18,95.091,0.25]
[1643548513671,2.84692626,95.186,95.091,0.25]
[1643548514272,17.11877378,95.189,95.091,0.25]
[1643548514273,2.84692626,95.187,95.091,0.25]
[1643548514474,2.84692626,95.185,95.091,0.25]
[1643548514775,0.25,95.184,95.091,0.25]
[1643548515176,2.84692626,95.191,95.091,0.25]
[1643548515376,0.25,95.19,95.091,0.25]
[1643548515575,0.25,95.19,95.092,104.1]
[1643548515775,2.84692626,95.192,95.093,0.25]
[1643548515976,0.25,95.191,95.093,0.25]
[1643548516379,17.36877378,95.191,95.093,0.25]
[1643548516576,19.96570004,95.19,95.093,0.25]
[1643548516780,2.84692626,95.189,95.093,0.25]
[1643548516976,19.96570004,95.189,95.081,104.35]
[1643548517176,17.11877378,95.189,95.081,104.35]
[1643548518581,17.11877378,95.189,95.091,6.0]
[1643548518778,4.32238866,95.221,95.091,6.0]
[1643548518779,2.84692626,95.195,95.092,104.35]
[1643548518980,2.84692626,95.213,95.101,34.12011634]
[1643548519180,2.84692626,95.23,95.102,110.1]
[1643548519380,2.84692626,95.23,95.13,52.53]
[1643548519580,4.32238866,95.273,95.14,6.0]
[1643548519581,2.84692626,95.256,95.14,6.0]
[1643548519782,2.84692626,95.257,95.141,151.2728]
[1643548520015,2.84692626,95.246,95.141,157.2728]
[1643548520213,2.84692626,95.244,95.141,53.1728]
[1643548520609,2.84692626,95.244,95.142,104.1]
[1643548520912,0.25,95.243,95.143,0.25]
[1643548521310,0.25,95.246,95.143,0.25]
[1643548521510,3.09692626,95.246,95.153,33.09357345]
[1643548521909,3.09692626,95.246,95.154,0.25]
[1643548522513,0.25,95.246,95.154,0.25]
[1643548522912,2.84692626,95.249,95.154,0.25]
[1643548523113,18.61392626,95.25,95.154,0.25]
[1643548523313,2.84692626,95.25,95.154,0.25]
[1643548523514,2.84692626,95.249,95.154,0.25]
[1643548523718,2.84692626,95.249,95.154,104.35]
[1643548524118,2.84692626,95.25,95.154,104.35]
[1643548524717,2.84692626,95.25,95.154,0.25]
[1643548524918,2.84692626,95.247,95.154,0.25]
[1643548525117,2.84692626,95.247,95.153,33.09357345]
[1643548525118,0.25,95.246,95.153,33.09357345]
[1643548525316,2.84692626,95.232,95.08,52.556]
[1643548525519,2.84692626,95.217,95.087,47.084]
[1643548525822,2.84692626,95.211,95.087,47.084]
[1643548526016,2.84692626,95.21,95.087,47.084]
[1643548526216,2.84692626,95.21,95.098,104.1]
[1643548526415,2.84692626,95.207,95.103,35.46024522]
[1643548526616,2.84692626,95.207,95.103,35.71024522]
[1643548526819,2.84692626,95.209,95.104,104.1]
[1643548527018,8.72518719,95.208,95.104,104.1]
[1643548527218,8.72518719,95.208,95.105,0.25]
[1643548528120,2.84692626,95.205,95.105,0.25]
[1643548528320,2.84692626,95.204,95.104,0.25]
[1643548528718,2.84692626,95.205,95.104,104.35]
[1643548529718,2.84692626,95.204,95.104,104.35]
[1643548529918,2.84692626,95.202,95.104,104.35]
[1643548530118,2.84692626,95.203,95.104,104.35]
[1643548530531,15.774,95.2,95.103,35.46024522]
[1643548530722,2.84692626,95.193,95.103,35.46024522]
[1643548530920,2.84692626,95.19,95.103,35.46024522]
[1643548531121,1.42213528,95.158,95.103,35.46024522]
[1643548531325,1.42213528,95.154,95.103,35.46024522]
[1643548531720,1.42213528,95.148,95.103,35.46024522]
[1643548532122,1.42213528,95.147,95.103,35.46024522]
[1643548532322,1.42213528,95.148,95.103,35.46024522]
[1643548532722,1.42213528,95.144,95.103,35.46024522]
[1643548532924,1.42213528,95.143,95.103,35.46024522]
[1643548533123,1.42213528,95.142,95.103,35.46024522]
[1643548533322,1.42213528,95.15,95.103,35.46024522]
[1643548533721,15.782,95.16,95.103,35.46024522]
[1643548533722,1.42213528,95.147,95.103,35.46024522]
[1643548534123,1.42213528,95.145,95.103,35.46024522]
[1643548534326,1.42213528,95.144,95.103,35.46024522]
[1643548534923,1.67213528,95.143,95.103,35.46024522]
[1643548535324,1.67213528,95.143,95.074,0.81539061]
[1643548535725,1.42213528,95.135,95.074,0.81539061]
[1643548535925,1.42213528,95.133,95.074,0.81539061]
[1643548536323,1.42213528,95.131,95.075,42.03728407]
[1643548536724,1.42213528,95.13,95.075,42.03728407]
[1643548536924,1.42213528,95.131,95.076,0.25]
[1643548537125,1.42213528,95.132,95.076,0.25]
[1643548537324,1.42213528,95.13,95.076,0.25]
[1643548537525,1.42213528,95.132,95.075,42.03728407]
[1643548537926,15.784,95.14,95.075,42.03728407]
[1643548537927,1.42213528,95.13,95.075,42.03728407]
[1643548538128,1.42213528,95.128,95.075,42.03728407]
[1643548538326,2.84692626,95.155,95.075,42.03728407]
[1643548538327,1.42213528,95.136,95.076,0.25]
[1643548538528,1.42213528,95.137,95.075,42.03728407]
[1643548538754,1.42213528,95.136,95.075,42.03728407]
[1643548538929,1.42213528,95.136,95.076,0.25]
[1643548539129,48.6468,95.176,95.076,0.25]
[1643548539130,1.42213528,95.139,95.076,0.25]
[1643548539331,1.42213528,95.142,95.076,0.25]
[1643548539931,1.42213528,95.141,95.076,0.25]
[1643548540432,1.42213528,95.143,95.076,0.25]
[1643548540635,1.42213528,95.141,95.076,0.25]
[1643548541038,1.42213528,95.14,95.076,0.25]
[1643548541432,0.25,95.139,95.076,0.25]
[1643548541632,1.42213528,95.138,95.076,0.25]
[1643548542433,0.25,95.139,95.076,0.25]
[1643548543033,1.42213528,95.138,95.076,0.25]
[1643548543236,1.42213528,95.139,95.076,0.25]
[1643548543434,0.25,95.141,95.076,0.25]
[1643548543435,1.67213528,95.141,95.076,0.25]
[1643548543734,0.25,95.141,95.076,0.25]
[1643548544833,1.42213528,95.141,95.076,0.25]
[1643548545637,0.25,95.142,95.076,116.04]
[1643548546735,1.42213528,95.148,95.076,116.04]
[1643548546934,1.42213528,95.151,95.076,116.04]
[1643548547536,1.42213528,95.152,95.076,116.04]
[1643548547835,1.42213528,95.15,95.076,116.04]
[1643548548036,1.42213528,95.15,95.077,23.3456]
[1643548548542,1.42213528,95.153,95.077,23.3456]
[1643548548736,1.42213528,95.152,95.077,23.3456]
[1643548548936,1.42213528,95.152,95.078,104.1]
[1643548549336,0.25,95.151,95.079,0.25]
[1643548549536,1.42213528,95.148,95.079,0.25]
[1643548549937,1.42213528,95.147,95.079,0.25]
[1643548550638,1.42213528,95.143,95.079,0.25]
[1643548550940,1.42213528,95.141,95.079,0.25]
[1643548551738,1.42213528,95.138,95.079,0.25]
[1643548551938,1.42213528,95.138,95.078,0.25]
[1643548552137,1.42213528,95.143,95.078,0.25]
[1643548552338,1.42213528,95.141,95.078,0.25]
[1643548552541,1.42213528,95.137,95.078,0.25]
[1643548552738,1.42213528,95.136,95.078,0.25]
[1643548553541,1.42213528,95.134,95.078,0.25]
[1643548553938,15.78,95.16,95.078,0.25]
[1643548553939,1.42213528,95.135,95.078,0.25]
[1643548554139,1.42213528,95.134,95.078,0.25]
[1643548554440,1.42213528,95.134,95.077,23.3456]
[1643548554639,1.42213528,95.127,95.077,23.3456]
[1643548555040,1.42213528,95.126,95.077,23.3456]
[1643548555243,1.42213528,95.125,95.077,23.3456]
[1643548555739,15.782,95.15,95.077,23.3456]
[1643548555740,1.42213528,95.121,95.077,23.3456]
[1643548556341,1.42213528,95.12,95.077,23.3456]
[1643548556742,1.42213528,95.126,95.078,0.25]
[1643548556943,15.782,95.15,95.078,0.25]
[1643548556944,1.42213528,95.125,95.078,0.25]
[1643548557144,1.42213528,95.124,95.077,23.3456]
[1643548557345,1.42213528,95.123,95.075,42.03728407]
[1643548557543,1.42213528,95.12,95.076,0.25]
[1643548557744,1.42213528,95.127,95.076,0.25]
[1643548558244,1.42213528,95.122,95.076,0.25]